Cogmind - Beta 15 @@@ ROGUE MODE // 2025.06.16 @ 18:30:14 Player: jumpy Result: Destroyed by B3-NBE(R) with Subdweller Machine Gun Performance ------------- Evolutions (0) 0 Regions Visited (2) 400 Robots Destroyed (14) 70 Value Destroyed (145) 145 Prototype IDs (0) 0 Alien Tech Used (0) 0 Bonus (0) 0 TOTAL SCORE: 615 Bonus ------- None Cogmind --------- Core Integrity 0/250 Matter 245/300 Energy 100/100 System Corruption 0% Temperature Cool (0) Movement Rolling (110) Ox2 Location -10/Subcaves Parts ------- > --- POWER (1) -------- (None) > --- PROPULSION (2) --- Wheel > --- UTILITY (2) ------ Large Storage Unit > --- WEAPON (2) ------- Light Assault Rifle > --- INVENTORY (15) --- Light Ion Engine Light Treads Improved Terrain Scanner Mining Laser Peak State ------------ > --- POWER ------------ Ion Engine > --- PROPULSION ------- Light Treads Light Treads > --- UTILITY ---------- Small Storage Unit Seismic Detector > --- WEAPON ----------- Assault Rifle Light Assault Rifle > --- INVENTORY -------- Light Ion Engine Wheel Compact Wheel Improved Terrain Scanner Improved Terrain Scanner Light Assault Rifle Mining Laser [Rating: 8] Favorites ----------- Power Ion Engine Engine Ion Engine Propulsion Light Treads Treads Light Treads Wheel Wheel Utility Seismic Detector Device Seismic Detector Storage Small Storage Unit Weapon Light Assault Rifle Ballistic Gun Light Assault Rifle Build | -11 -10 -10 ------- Run | Yrd Mat Sub Slots Evolved . | . . . Power . | . . . Propulsion . | . . . Utility . | . . . Weapon . | . . . Parts Attached 13 | 7 2 4 Power 1 | 1 . . Engine 1 | 1 . . Core . | . . . Reactor . | . . . Propulsion 4 | 2 . 2 Treads 2 | 2 . . Leg . | . . . Wheel 2 | . . 2 Hover . | . . . Flight . | . . . Utility 5 | 2 2 1 Device 2 | 1 . 1 Storage 3 | 1 2 . Processor . | . . . Hackware . | . . . Protection . | . . . Artifact . | . . . Weapon 3 | 2 . 1 Energy Gun . | . . . Energy Cannon . | . . . Ballistic Gun 3 | 2 . 1 Ballistic Cannon . | . . . Launcher . | . . . Special Weapon . | . . . Impact Weapon . | . . . Slashing Weapon . | . . . Piercing Weapon . | . . . Special Melee Weapon . | . . . Unidentified Prototypes . | . . . Parts Lost 6 | . . 6 Power 1 | . . 1 Propulsion 2 | . . 2 Utility 1 | . . 1 Weapon 2 | . . 2 Highest Loss Streak 5 | . . 5 To Critical Strikes . | . . . Average Backups 5 | 4 6 5 Power . | . 1 1 Propulsion 1 | 1 2 1 Utility . | . 1 1 Weapon 1 | 1 2 1 Tool/Special . | . . . Unused Backups 4 | 1 . 3 Power 1 | . . 1 Propulsion . | . . . Utility 2 | 1 . 1 Weapon 1 | . . 1 Tool/Special . | . . . Average Slot Usage (%) 95 | . 100 93 Engine 13 | . 14 12 Treads 20 | . 28 15 Wheel 5 | . . 9 Device 13 | . 14 12 Storage 14 | . 14 14 Ballistic Gun 27 | . 28 26 Peak Build Rating 8 | 8 7 7 Average Rating 6 | 6 7 6 On Entrance 4 | . 7 7 Naked Turns . | . . . Heaviest Build 29 | 14 29 29 Greatest Support 40 | 40 40 40 Greatest Overweight (x) 1 | . . 1 Average Overweight (x) . | . . . Largest Inventory Capacity 15 | 8 15 15 Average Capacity 10 | 7 9 15 Most Carried 7 | 7 7 6 Average Carried 5 | 4 6 5 Final Capacity 15 | 8 15 15 Final Carried 6 | 6 6 4 Class Distribution -------------------- 100% | Mutant Dominant Class ---------------- Mutant | -10/Materials Mutant | -10/Subcaves Resources | -11 -10 -10 ----------- Run | Yrd Mat Sub Matter Collected 506 | 430 26 50 Remotely . | . . . Salvage Created 374 | 292 42 40 Parts 31 | 27 3 1 Haulers Intercepted . | . . . Recyclers Shooed . | . . . Parts Field Recycled . | . . . Retrieved Matter . | . . . Parts Self-Destructed 10 | . . 10 Prevented . | . . . Kills | -11 -10 -10 ------- Run | Yrd Mat Sub Combat Hostiles Destroyed 2 | . 1 1 Guns 2 | . 1 1 Classes Destroyed 5 | 3 1 1 Worker 2 | 2 . . Tunneler 9 | 9 . . Recycler 1 | 1 . . Grunt 1 | . 1 . Subdweller 1 | . . 1 Best Kill Streak 4 | 4 1 1 Combat Bots Only 1 | . 1 1 Max Kills in Single Turn 2 | 2 1 1 Gunslinging . | . . . Exploded . | . . . Melee . | . . . Uniques/NPCs Destroyed . | . . . Combat | -11 -10 -10 -------- Run | Yrd Mat Sub Hostile Shots Fired 65 | . 7 58 Missed 20 | . . 20 Hits 45 | . 7 38 Projectile 45 | . 7 38 Critical Strikes 1 | . . 1 Damage Taken 958 | . 79 879 Core 261 | . . 261 Absorbed by Shields . | . . . Core Remaining (%) 100 | 100 . . Volleys Fired 73 | 40 4 29 Largest 2 | 2 2 2 Hottest 40 | 40 40 40 Shots Fired 135 | 80 8 47 Gun 135 | 80 8 47 Cannon . | . . . Launcher . | . . . Special . | . . . Kinetic 135 | 80 8 47 Thermal . | . . . Explosive . | . . . Electromagnetic . | . . . Robot Hit Streak 9 | 7 5 9 Robot Miss Streak 4 | 4 1 2 Penetration Max . | . . . Secondary Targets . | . . . Shots Hit Robots 88 | 46 6 36 Core Hits 23 | 16 2 5 Critical Kills . | . . . Critical Parts Destroyed 1 | 1 . . Critical Strikes 1 | 1 . . Destroy 1 | 1 . . Melee Attacks . | . . . Impact . | . . . Slashing . | . . . Piercing . | . . . Sneak Attacks . | . . . Combat Hostiles . | . . . Follow-up Attacks . | . . . Damage Inflicted 921 | 508 66 347 Guns 921 | 508 66 347 Cannons . | . . . Explosions . | . . . Melee . | . . . Ramming . | . . . Kinetic 921 | 508 66 347 Thermal . | . . . Explosive . | . . . Electromagnetic . | . . . Impact . | . . . Slashing . | . . . Piercing . | . . . Highest Corruption . | . . . Average Corruption . | . . . Corruption Purged . | . . . Corruption Blocked . | . . . Overload Shots . | . . . Overflow Damage . | . . . Projectiles . | . . . Explosions . | . . . Melee . | . . . Knockbacks . | . . . Impact . | . . . Kinetic . | . . . Secondary . | . . . Self-Inflicted Damage . | . . . Shots . | . . . Rammed . | . . . Targets Rammed . | . . . Kicked . | . . . Crushed . | . . . Highest Temperature 12 | . 12 . Average Temperature 6 | . 6 . Received Heat Transfer 150 | . 42 108 Siege Activations . | . . . Martial Activations . | . . . Shielding Activations . | . . . Robots Disrupted . | . . . Combat Hostiles . | . . . Robots Corrupted . | . . . Combat Hostiles . | . . . Parts Fried . | . . . Impact Corruptions . | . . . Robots Melted . | . . . Combat Hostiles . | . . . Parts Melted 2 | . . 2 Heat Transferred . | . . . Parts Sabotaged . | . . . Parts Stolen . | . . . Parts Stripped . | . . . Power Chain Reactions . | . . . Alert | -11 -10 -10 ------- Run | Yrd Mat Sub Maximum Alert Level . | . . . Low Security (%) 100 | 100 100 . Level 1 . | . . . Level 2 . | . . . Level 3 . | . . . Level 4 . | . . . Level 5 . | . . . High Security . | . . . Max Security . | . . . Peak Influence 50 | 15 50 . Initial . | . . . Average 7 | 1 18 . Influence Increases 140 | 60 80 . Destroy 0b10 Robot/C 20 | . 20 . Destroy 0b10 Robot/NC 60 | 60 . . Lose Combat Pursuer 60 | . 60 . Influence Decreases 140 | 60 80 . Time Decay 140 | 60 80 . Squads Dispatched 1 | . 1 . Investigation . | . . . Extermination . | . . . Reinforcement 1 | . 1 . Assault . | . . . Garrison . | . . . Intercept . | . . . Searches Triggered . | . . . Construction Impeded . | . . . Haulers Reinforced . | . . . Active Scanning Responses . | . . . Cargo Convoy Interrupts . | . . . Stealth | -11 -10 -10 --------- Run | Yrd Mat Sub Distress Signals . | . . . Communications Jammed . | . . . Distress Signals . | . . . Times Spotted 12 | . 8 4 Peak Tracking Total 6 | . 6 3 Tactical Retreats 2 | . 2 . Traps | -11 -10 -10 ------- Run | Yrd Mat Sub Traps Triggered . | . . . Indirectly . | . . . Trap Hack Attempts . | . . . Triggered . | . . . Disarmed . | . . . Reprogrammed . | . . . Reused . | . . . Traps Extracted . | . . . Installed . | . . . Triggered . | . . . Machines | -11 -10 -10 ---------- Run | Yrd Mat Sub Machines Disabled . | . . . Max in Single Turn . | . . . Machines Repaired . | . . . Machines Dismantled . | . . . Machines Sabotaged . | . . . Overloaded Fab Kills . | . . . Hacking | -11 -10 -10 --------- Run | Yrd Mat Sub Machines Accessed . | . . . Terminals . | . . . Fabricators . | . . . Repair Stations . | . . . Recycling Units . | . . . Scanalyzers . | . . . Garrison Access . | . . . Total Hacks . | . . . Successful . | . . . Failed . | . . . Catastrophic . | . . . Database Lockouts . | . . . Manual . | . . . Terminals . | . . . Fabricators . | . . . Repair Stations . | . . . Recycling Units . | . . . Scanalyzers . | . . . Garrison Access . | . . . Terminal Hacks . | . . . Fabricator Hacks . | . . . Repair Station Hacks . | . . . Recycling Unit Hacks . | . . . Scanalyzer . | . . . Garrison Access Hacks . | . . . Unauthorized Hacks . | . . . Terminals . | . . . Fabricators . | . . . Repair Stations . | . . . Recycling Units . | . . . Scanalyzers . | . . . Garrison Access . | . . . Data Cores Recovered . | . . . Used . | . . . Hacking Detections . | . . . Full Trace Events . | . . . Feedback Events . | . . . Feedback Blocked . | . . . Robot Schematics Acquired . | . . . Robots Built . | . . . Authchips . | . . . Time . | . . . Total Robot Build Rating . | . . . Part Schematics Acquired . | . . . Parts Built . | . . . Authchips . | . . . Time . | . . . Total Part Build Rating . | . . . Parts Repaired . | . . . Time . | . . . Parts Recycled . | . . . Recycled Matter . | . . . Retrieved Matter . | . . . Retrieved Components . | . . . Parts Scanalyzed . | . . . Part Schematics Acquired . | . . . Parts Damaged . | . . . Bothacking | -11 -10 -10 ------------ Run | Yrd Mat Sub Used RIF Installer . | . . . Robots Hacked . | . . . Non-combat . | . . . Combat . | . . . Robot Hacks Applied . | . . . Relay Couplers Released . | . . . Fabnet Peak Effective % . | . . . Robots Rewired . | . . . Allies Hacked . | . . . Hacks Repelled . | . . . Allies | -11 -10 -10 -------- Run | Yrd Mat Sub Total Allies . | . . . Largest Group . | . . . Highest-Rated Group . | . . . Highest-Rated Ally . | . . . Total Orders . | . . . Ally Attacks . | . . . Total Damage . | . . . Kills . | . . . Allies Corrupted . | . . . Allies Melted . | . . . Intel | -11 -10 -10 ------- Run | Yrd Mat Sub Active Infowar (turns) 844 | 295 227 322 Seismic 844 | 295 227 322 Robot Analysis Total . | . . . Derelict Logs Recovered . | . . . Drone Launches . | . . . Drone Recoveries . | . . . Exploration | -11 -10 -10 ------------- Run | Yrd Mat Sub Turns Passed 990 | 412 227 351 Spaces Moved 486 | 181 120 185 Core 6 | 6 . . Treads 382 | 175 120 87 Legs . | . . . Wheels 98 | . . 98 Hover . | . . . Flight . | . . . Fastest Speed 50 | 50 160 105 Average Speed 150 | 156 160 137 Slowest Speed 240 | 160 160 240 Overloaded Moves . | . . . Propulsion Burnouts . | . . . Robots Hopped . | . . . Potential Cave-ins . | . . . Cave-ins Triggered . | . . . Exploration Rate (%) 16 | 8 22 18 Regions Visited 2 Branch Regions 1 Pre-discovered Areas . | . . . Known Exits Taken . | . . . Unknown Exits Taken 2 | 1 1 . Scrap Searched . | . . . Spaces Dug . | . . . Terrain Destroyed . | . . . Melee . | . . . Projectile . | . . . AOE . | . . . Terrain Rammed . | . . . Walls Destroyed . | . . . Machines Disabled . | . . . Actions | -11 -10 -10 --------- Run | Yrd Mat Sub Total 624 | 235 148 241 Wait 41 | . 21 20 Move 484 | 180 119 185 Hop . | . . . Pick Up 7 | 7 . . Fast Attach 7 | 7 . . Attach 3 | . . 3 Detach 1 | . . 1 Swap 4 | . 2 2 Drop 3 | 1 2 . Fire 73 | 40 4 29 Melee . | . . . Ram . | . . . Kick . | . . . Crush . | . . . Escape Stasis . | . . . Rewire 1 | . . 1 Trap . | . . . Miscellaneous . | . . . Route ------- -11/Scrapyard -10/Materials -10/Subcaves History --------- Turn | Location | Event 15 | -11/Scrapyard | Discovered new exit (range 15) 413 | -11/Scrapyard | Entered Materials 414 | -10/Materials | Build established: Mutant 414 | -10/Materials | Met a group of wandering Federalists 513 | -10/Materials | Lost 3 allies 593 | -10/Materials | Discovered new exit (range 13) 640 | -10/Materials | Entered Subcaves 641 | -10/Subcaves | Continued accompanying wandering Federalists (2) 641 | -10/Subcaves | Approached by a straggling Scientist 649 | -10/Subcaves | A swath of the cavern ceiling suddenly collapsed 973 | -10/Subcaves | Core integrity fell below 50% 979 | -10/Subcaves | Core integrity fell below 20% 991 | -10/Subcaves | Destroyed by B3-NBE(R) with Subdweller Machine Gun Last Messages --------------- somewhere, does anyone remember where it is?" 00681_ QL-VO5(g): "We could head over to Recycling and return via the Scraplab, but it would be faster if we could just find that shortcut." 00729_ Acquired 10 matter. 00760_ Attempting to rewire RT-IJZ(R). 00760_ RT-IJZ(R) is broken beyond repair. 00808_ Lgt. Treads destroyed. 00810_ Sub. Monowheel melted. 00810_ Sub. Optics melted. 00810_ 5T-VH9(R) destroyed. 00819_ Subatomizers dissect the Disposable Heat Sink. 00820_ Acquired 40 matter. 00825_ Acquired Disposable Heat Sink. 00827_ Acquired Seismic Detector. 00845_ Subatomizers dissect the Disposable Heat Sink. 00945_ Assault Rifle destroyed. 00964_ Com. Wheel destroyed. 00964_ Seismic Detector destroyed. 00966_ Ion Engine destroyed. 00980_ Lgt. Assault Rifle destroyed. Map ----- +----------------------------------------------------+ | ???????????????# # ##???????## ##??? | | ???????????????## #????????# ##### | | ????????????????## ##????????## | | ?????????????????#####??????????###### ## | | ?????????????????????????????????????# ### | | ?????????????????????????????????????###?#### | | ????????????????????????????????????????????#### | | ??????????????????????????????????????????????## | | ?????????????????????????????????????????????## | | ????????????????????????????????????????????## | | ????????????????????????????????????????????# | | ????????????????????????????????????????????# | | ????????????????????????????????????????????# | | ????????????????????????????????????????????## | | ?????????????????????????????????????????????# | | ?????????????????????????????????????????????# | | ?????????????????????????????????????????????## | | ??????????????????????????????????????????????## | | ??????????????????????????????????????????????## | | ?????????????????????????????????????????????## | | ?????????????????????????###????????????????## | | ????????????????????##?## ##??????????????## | | ???????????????????## ## #?###########?## | | ???????????????????# ### # # # # ### | | ???????????????????# ## | | ???????????????????####@ ### | | ??????????????????????# ### ## # # # | | ??????????????????????# ### ############# | | ?????????????????????## ##?## ##???????????## | | ????????????????????## ##??# #?????????????## | | ????????????????????# #### ##?????????????# | | ????????????????????#### ## ##?##?????????? | | ??????????????????????## ## ##????????? | | ??????????????????????# ##???????? | | ??????????????????????# #???????? | | ?????????????????????## #???????? | | ?????????????????????# #???????? | | ?????????????????????# #???????? | | ?????????????????????## R R #???????? | | ??????????????????????## ## #??????? | | ???????????????????????##### ##??????? | | ????????????????????????? ##### #??????? | | ???????????????????????# ##????# ##??????? | | ???????????????????????# ##?????? #??????? | | ??????????????????????# #???????? ##??????? | | ????????????????????? ???????? #???????? | | ???????????????????? ?????????????????? | | ???????????????????## ### ?????????????????? | | ????????????????????#####??## ?????????????????? | | ????????????????????????????? ?????????????????? | +----------------------------------------------------+ Best States ------------- Heat Dissipation 25 Energy Generation 10 Energy Capacity 250 Matter Stores 300 Matter Capacity 300 Sight Range 16 Terrain Scan Density 10 Evasion (%) 40 Recoil Reduction 2 Item Schematics ----------------- None Robot Schematics ------------------ None Fabricated ------------ Nothing Repaired ---------- Nothing Alien Tech Used ----------------- None Achievements -------------- None Challenges ------------ None Game ------ Seed LinkedSapperAirjet Manual? 0 Play Time 00:05:20 Cumulative 126.2 hours Start 2025.06.16 @ 18:26:18 End 2025.06.16 @ 18:30:14 Sessions 1 Manual Loads 0 Difficulty Rogue Special Mode None Game No. 329 Rogue 329 Adventurer 0 Explorer 0 Win Type - Total 3 Types 2/0/1/0/0/0/0/0/0/0 Lore% 62 Gallery% 54 Achievement% 45 Wizard Run 0 Options --------- Layout 0 ASCII 0 Keyboard 0 Movement Numpad Keybinds 0 Fullscreen 2 Font 18/Terminus Map View 76x50 Zoom Use 0% Tactical HUD 1 Map Filters NONE Filters NONE Steam 1 RUN: de53a8fe-69fa-487d-8787-7627f01993e4